[Event "*** Titled Tuesday Blitz"]
[Site "Chess.com"]
[Date "2021.03.02"]
[Round "2"]
[White "BrandonJacobson"]
[Black "AttackSparrow"]
[Result "1/2-1/2"]
[WhiteElo "2798"]
[BlackElo "2535"]
[TimeControl "180+1"]
[EndTime "10:20:53 PST"]
[Termination "Game drawn - insufficient material"]

1. d4 {[%clk 0:03:00.9]} 1... Nf6 {[%clk 0:02:59.1]} 2. c4 {[%clk 0:02:56.8]}
2... g6 {[%clk 0:02:58.4]} 3. Nc3 {[%clk 0:02:56.9]} 3... d5 {[%clk 0:02:58.3]}
4. cxd5 {[%clk 0:02:57.8]} 4... Nxd5 {[%clk 0:02:58.8]} 5. e4 {[%clk 0:02:58.6]}
5... Nxc3 {[%clk 0:02:59]} 6. bxc3 {[%clk 0:02:59.5]} 6... Bg7 {[%clk
0:02:57.2]} 7. Nf3 {[%clk 0:03:00.4]} 7... c5 {[%clk 0:02:57.5]} 8. Rb1 {[%clk
0:03:01.3]} 8... Nc6 {[%clk 0:02:57.3]} 9. d5 {[%clk 0:02:59.6]} 9... Ne5 {[%clk
0:02:46]} 10. Nxe5 {[%clk 0:02:46.8]} 10... Bxe5 {[%clk 0:02:46.9]} 11. Bb5+
{[%clk 0:02:47.1]} 11... Bd7 {[%clk 0:02:45.6]} 12. Bxd7+ {[%clk 0:02:30.9]}
12... Qxd7 {[%clk 0:02:46.5]} 13. c4 {[%clk 0:02:31.5]} 13... O-O {[%clk
0:02:42.7]} 14. O-O {[%clk 0:02:28.4]} 14... e6 {[%clk 0:02:33.2]} 15. Be3
{[%clk 0:02:27.4]} 15... b6 {[%clk 0:02:31.7]} 16. f4 {[%clk 0:02:21.6]} 16...
Bg7 {[%clk 0:02:31.4]} 17. e5 {[%clk 0:02:14.5]} 17... Rfd8 {[%clk 0:02:08.7]}
18. d6 {[%clk 0:01:30]} 18... f6 {[%clk 0:02:08.5]} 19. Qf3 {[%clk 0:01:20.9]}
19... fxe5 {[%clk 0:02:06.3]} 20. fxe5 {[%clk 0:01:21.8]} 20... Bxe5 {[%clk
0:02:04.3]} 21. Rbd1 {[%clk 0:01:22.5]} 21... Rac8 {[%clk 0:01:43.7]} 22. Bh6
{[%clk 0:01:11.5]} 22... Bg7 {[%clk 0:00:57.1]} 23. Bxg7 {[%clk 0:01:06.7]}
23... Qxg7 {[%clk 0:00:58]} 24. Qe4 {[%clk 0:01:03]} 24... Rd7 {[%clk
0:00:25.6]} 25. Qxe6+ {[%clk 0:00:59.6]} 25... Kh8 {[%clk 0:00:26.1]} 26. Rd3
{[%clk 0:00:26.5]} 26... Rcd8 {[%clk 0:00:26]} 27. Rfd1 {[%clk 0:00:26.5]} 27...
Qf7 {[%clk 0:00:22.2]} 28. Qe5+ {[%clk 0:00:26.6]} 28... Qg7 {[%clk 0:00:20.8]}
29. Qd5 {[%clk 0:00:27.1]} 29... Qf7 {[%clk 0:00:20.4]} 30. Qc6 {[%clk
0:00:27.5]} 30... Kg8 {[%clk 0:00:19.9]} 31. Qe4 {[%clk 0:00:23.7]} 31... Re8
{[%clk 0:00:18.5]} 32. Qg4 {[%clk 0:00:22.5]} 32... Qe6 {[%clk 0:00:17.8]} 33.
Qg3 {[%clk 0:00:20.6]} 33... Red8 {[%clk 0:00:15.5]} 34. Qf4 {[%clk 0:00:20.1]}
34... Qf7 {[%clk 0:00:15]} 35. Qh4 {[%clk 0:00:19.4]} 35... Re8 {[%clk
0:00:14.5]} 36. h3 {[%clk 0:00:19.8]} 36... Qe6 {[%clk 0:00:13.6]} 37. a4 {[%clk
0:00:19.8]} 37... Qe5 {[%clk 0:00:12.9]} 38. Rd5 {[%clk 0:00:16.8]} 38... Qe3+
{[%clk 0:00:12.3]} 39. Kh2 {[%clk 0:00:17.5]} 39... Qe6 {[%clk 0:00:13.2]} 40.
Qg3 {[%clk 0:00:16.6]} 40... Red8 {[%clk 0:00:13]} 41. a5 {[%clk 0:00:15.5]}
41... bxa5 {[%clk 0:00:11.6]} 42. Qd3 {[%clk 0:00:12.4]} 42... a4 {[%clk
0:00:11.6]} 43. Rd2 {[%clk 0:00:11.2]} 43... a3 {[%clk 0:00:10.9]} 44. Qxa3
{[%clk 0:00:11]} 44... Rxd6 {[%clk 0:00:11.3]} 45. Qxc5 {[%clk 0:00:11.2]} 45...
Rxd5 {[%clk 0:00:11.4]} 46. cxd5 {[%clk 0:00:07.6]} 46... Qe5+ {[%clk
0:00:11.3]} 47. g3 {[%clk 0:00:06]} 47... a6 {[%clk 0:00:09.8]} 48. Qa5 {[%clk
0:00:05.3]} 48... Rd6 {[%clk 0:00:08.7]} 49. Qc5 {[%clk 0:00:05.6]} 49... Kg7
{[%clk 0:00:08.3]} 50. Qc7+ {[%clk 0:00:05.9]} 50... Kg8 {[%clk 0:00:08.1]} 51.
Qc4 {[%clk 0:00:06.6]} 51... a5 {[%clk 0:00:07.8]} 52. Qc5 {[%clk 0:00:06.1]}
52... a4 {[%clk 0:00:05.1]} 53. h4 {[%clk 0:00:06.6]} 53... Kg7 {[%clk
0:00:04.1]} 54. Qb4 {[%clk 0:00:04.4]} 54... h5 {[%clk 0:00:03.7]} 55. Qxa4
{[%clk 0:00:04.2]} 55... Rxd5 {[%clk 0:00:04.1]} 56. Qa7+ {[%clk 0:00:04.5]}
56... Kh6 {[%clk 0:00:03.5]} 57. Rg2 {[%clk 0:00:03.7]} 57... Rd3 {[%clk
0:00:03.4]} 58. Qa8 {[%clk 0:00:03.6]} 58... Kg7 {[%clk 0:00:01.8]} 59. Qb7+
{[%clk 0:00:03.8]} 59... Kh6 {[%clk 0:00:01.6]} 60. Qa6 {[%clk 0:00:04.3]} 60...
Qd6 {[%clk 0:00:01.4]} 61. Qa8 {[%clk 0:00:03.9]} 61... Kg7 {[%clk 0:00:01.8]}
62. Qb7+ {[%clk 0:00:03.8]} 62... Qd7 {[%clk 0:00:02.4]} 63. Qe4 {[%clk
0:00:03.9]} 63... Rd5 {[%clk 0:00:02.6]} 64. Rf2 {[%clk 0:00:03.7]} 64... Rd2
{[%clk 0:00:02.8]} 65. Qf4 {[%clk 0:00:02.7]} 65... Rxf2+ {[%clk 0:00:02.3]} 66.
Qxf2 {[%clk 0:00:03.6]} 66... Qf5 {[%clk 0:00:02.7]} 67. Qd4+ {[%clk 0:00:03.9]}
67... Qf6 {[%clk 0:00:03]} 68. Qd7+ {[%clk 0:00:04.3]} 68... Qf7 {[%clk
0:00:03.3]} 69. Qd3 {[%clk 0:00:04.6]} 69... Qf6 {[%clk 0:00:03.8]} 70. Kg2
{[%clk 0:00:05]} 70... Qf5 {[%clk 0:00:03.9]} 71. Qd4+ {[%clk 0:00:05.3]} 71...
Qf6 {[%clk 0:00:04.3]} 72. Qd3 {[%clk 0:00:05.4]} 72... Kf7 {[%clk 0:00:04.2]}
73. Qd7+ {[%clk 0:00:05.3]} 73... Qe7 {[%clk 0:00:04.4]} 74. Qd5+ {[%clk
0:00:05.8]} 74... Qe6 {[%clk 0:00:04.9]} 75. Qb7+ {[%clk 0:00:06.3]} 75... Kf6
{[%clk 0:00:05.1]} 76. Qb2+ {[%clk 0:00:06.8]} 76... Qe5 {[%clk 0:00:05.3]} 77.
Qf2+ {[%clk 0:00:07.5]} 77... Ke6 {[%clk 0:00:05.5]} 78. Qb6+ {[%clk 0:00:08]}
78... Qd6 {[%clk 0:00:05.6]} 79. Qe3+ {[%clk 0:00:07.8]} 79... Kf6 {[%clk
0:00:05.8]} 80. Qg5+ {[%clk 0:00:07.7]} 80... Kf7 {[%clk 0:00:05.7]} 81. Qc1
{[%clk 0:00:06.8]} 81... Qd5+ {[%clk 0:00:05.8]} 82. Kh2 {[%clk 0:00:07.3]}
82... Ke6 {[%clk 0:00:06.5]} 83. Qf1 {[%clk 0:00:06.6]} 83... Qd2+ {[%clk
0:00:06.4]} 84. Kh3 {[%clk 0:00:06.8]} 84... Qd5 {[%clk 0:00:07.3]} 85. Qa6+
{[%clk 0:00:06.7]} 85... Qd6 {[%clk 0:00:07.4]} 86. Qc4+ {[%clk 0:00:07.1]}
86... Kf6 {[%clk 0:00:07.6]} 87. Qc3+ {[%clk 0:00:07]} 87... Qe5 {[%clk
0:00:07.5]} 88. Qc1 {[%clk 0:00:05.3]} 88... Qf5+ {[%clk 0:00:07.6]} 89. Kg2
{[%clk 0:00:05.9]} 89... Qe4+ {[%clk 0:00:08]} 90. Kh2 {[%clk 0:00:06.4]} 90...
Kf5 {[%clk 0:00:08.5]} 91. Qf1+ {[%clk 0:00:02.9]} 91... Ke6 {[%clk 0:00:08.6]}
92. Qa6+ {[%clk 0:00:02.8]} 92... Ke5 {[%clk 0:00:08.3]} 93. Qb5+ {[%clk
0:00:02.8]} 93... Kf6 {[%clk 0:00:08.1]} 94. Qf1+ {[%clk 0:00:03.2]} 94... Ke6
{[%clk 0:00:08.2]} 95. Qf2 {[%clk 0:00:03.8]} 95... Ke5 {[%clk 0:00:08.2]} 96.
Qc5+ {[%clk 0:00:04.1]} 96... Ke6 {[%clk 0:00:07.8]} 97. Qb6+ {[%clk 0:00:04.3]}
97... Kf7 {[%clk 0:00:07.3]} 98. Qc7+ {[%clk 0:00:04.5]} 98... Kf6 {[%clk
0:00:07.3]} 99. Qd6+ {[%clk 0:00:04.6]} 99... Qe6 {[%clk 0:00:06.9]} 100. Qf4+
{[%clk 0:00:04.5]} 100... Kg7 {[%clk 0:00:06.9]} 101. Kg2 {[%clk 0:00:04.5]}
101... Qe2+ {[%clk 0:00:06.8]} 102. Kg1 {[%clk 0:00:05.1]} 102... Qe1+ {[%clk
0:00:06.5]} 103. Kg2 {[%clk 0:00:05.7]} 103... Qe6 {[%clk 0:00:06.9]} 104. Kf2
{[%clk 0:00:05.8]} 104... Qf6 {[%clk 0:00:06.4]} 105. Ke3 {[%clk 0:00:06]}
105... Qe6+ {[%clk 0:00:06.4]} 106. Kd4 {[%clk 0:00:05.8]} 106... Qd7+ {[%clk
0:00:05.7]} 107. Ke5 {[%clk 0:00:05.6]} 107... Qc7+ {[%clk 0:00:05.5]} 108. Ke4
{[%clk 0:00:06.1]} 108... Qxf4+ {[%clk 0:00:05]} 109. Kxf4 {[%clk 0:00:06.2]}
109... Kf6 {[%clk 0:00:05.1]} 110. Ke4 {[%clk 0:00:06.8]} 110... g5 {[%clk
0:00:04.3]} 111. hxg5+ {[%clk 0:00:06.5]} 111... Kxg5 {[%clk 0:00:05.2]} 112.
Kf3 {[%clk 0:00:07]} 112... Kf5 {[%clk 0:00:05.6]} 113. Kf2 {[%clk 0:00:07.5]}
113... Kg4 {[%clk 0:00:06.5]} 114. Kg2 {[%clk 0:00:08.1]} 114... Kg5 {[%clk
0:00:07]} 115. Kh3 {[%clk 0:00:08.4]} 115... Kf5 {[%clk 0:00:07.5]} 116. Kh4
{[%clk 0:00:09.3]} 116... Kg6 {[%clk 0:00:07.9]} 117. g4 {[%clk 0:00:10.1]}
117... hxg4 {[%clk 0:00:08.8]} 118. Kxg4 {[%clk 0:00:11]} 1/2-1/2

[Event "*** Titled Tuesday Blitz"]
[Site "Chess.com"]
[Date "2021.03.02"]
[Round "2"]
[White "WPWPWP-2015"]
[Black "Witik"]
[Result "0-1"]
[WhiteElo "2495"]
[BlackElo "2712"]
[TimeControl "180+1"]
[EndTime "10:20:57 PST"]
[Termination "Witik won by resignation"]

1. e4 {[%clk 0:03:00.9]} 1... c6 {[%clk 0:02:55.7]} 2. Nc3 {[%clk 0:02:59.3]}
2... d5 {[%clk 0:02:55.8]} 3. Nf3 {[%clk 0:02:59]} 3... Bg4 {[%clk 0:02:55.2]}
4. h3 {[%clk 0:02:58.2]} 4... Bxf3 {[%clk 0:02:54.1]} 5. Qxf3 {[%clk 0:02:58]}
5... Nf6 {[%clk 0:02:53.6]} 6. d4 {[%clk 0:02:57.2]} 6... dxe4 {[%clk
0:02:52.2]} 7. Qe3 {[%clk 0:02:56.8]} 7... Nbd7 {[%clk 0:02:42.2]} 8. Nxe4
{[%clk 0:02:55.1]} 8... e6 {[%clk 0:02:38]} 9. Bd3 {[%clk 0:02:51.7]} 9... Be7
{[%clk 0:02:36.3]} 10. c3 {[%clk 0:02:41.4]} 10... O-O {[%clk 0:02:33.8]} 11.
O-O {[%clk 0:02:40]} 11... Re8 {[%clk 0:02:22.1]} 12. Ng5 {[%clk 0:02:31.7]}
12... c5 {[%clk 0:02:14.5]} 13. dxc5 {[%clk 0:02:22.9]} 13... Nxc5 {[%clk
0:02:10.8]} 14. Bc2 {[%clk 0:02:18.8]} 14... Qc7 {[%clk 0:01:44.6]} 15. Nf3
{[%clk 0:02:01.8]} 15... Nd5 {[%clk 0:01:38.7]} 16. Qe5 {[%clk 0:01:52.1]} 16...
Bd6 {[%clk 0:01:32.2]} 17. Qh5 {[%clk 0:01:49.5]} 17... g6 {[%clk 0:01:30.1]}
18. Qh6 {[%clk 0:01:49.2]} 18... Bf4 {[%clk 0:01:26.8]} 19. Ng5 {[%clk
0:01:43.7]} 19... f6 {[%clk 0:01:24.1]} 20. Bxf4 {[%clk 0:00:54.9]} 20... Nxf4
{[%clk 0:01:25]} 21. Nxh7 {[%clk 0:00:44.3]} 21... Ne2+ {[%clk 0:01:13.5]} 22.
Kh1 {[%clk 0:00:44.1]} 22... Qxh7 {[%clk 0:01:14.4]} 23. Qe3 {[%clk 0:00:43.7]}
23... Qh5 {[%clk 0:01:07.7]} 24. Bd1 {[%clk 0:00:37.7]} 24... Nd7 {[%clk
0:00:56]} 25. Bxe2 {[%clk 0:00:37.5]} 25... Qh4 {[%clk 0:00:51.8]} 26. Bf3
{[%clk 0:00:31]} 26... Ne5 {[%clk 0:00:49]} 27. Bxb7 {[%clk 0:00:29.9]} 27...
Rab8 {[%clk 0:00:47.7]} 28. Be4 {[%clk 0:00:27]} 28... Rxb2 {[%clk 0:00:43]} 29.
f4 {[%clk 0:00:26.5]} 29... Ng4 {[%clk 0:00:41.8]} 30. Qf3 {[%clk 0:00:21.3]}
30... Nf2+ {[%clk 0:00:26.6]} 31. Kg1 {[%clk 0:00:21]} 31... Nxe4 {[%clk
0:00:22.3]} 32. Qxe4 {[%clk 0:00:21.9]} 32... Qg3 {[%clk 0:00:18.2]} 33. Rae1
{[%clk 0:00:20.7]} 33... Rxa2 {[%clk 0:00:15.4]} 34. Qc6 {[%clk 0:00:19.9]}
34... Kf7 {[%clk 0:00:13.1]} 35. f5 {[%clk 0:00:18.1]} 35... gxf5 {[%clk
0:00:12.8]} 36. Qb7+ {[%clk 0:00:15.7]} 36... Re7 {[%clk 0:00:13.1]} 37. Qc6
{[%clk 0:00:15.8]} 37... a5 {[%clk 0:00:12.4]} 38. Ra1 {[%clk 0:00:14.6]} 38...
Rc2 {[%clk 0:00:10.6]} 39. Rxa5 {[%clk 0:00:13.5]} 39... Rxc3 {[%clk 0:00:11.2]}
40. Qa8 {[%clk 0:00:10.9]} 40... Rc2 {[%clk 0:00:09.1]} 41. Ra7 {[%clk 0:00:09]}
41... Qe3+ {[%clk 0:00:08.8]} 42. Kh1 {[%clk 0:00:08.4]} 42... Qxa7 {[%clk
0:00:08.5]} 43. Qf3 {[%clk 0:00:08.6]} 43... Qd4 {[%clk 0:00:07]} 44. Qh5+
{[%clk 0:00:08.6]} 44... Kg7 {[%clk 0:00:07.7]} 45. Rf3 {[%clk 0:00:08.2]} 45...
Rc1+ {[%clk 0:00:07.8]} 46. Kh2 {[%clk 0:00:07.9]} 46... Qe5+ {[%clk 0:00:08.3]}
47. Rg3+ {[%clk 0:00:08.1]} 47... Qxg3+ {[%clk 0:00:06.2]} 48. Kxg3 {[%clk
0:00:09]} 48... Rc3+ {[%clk 0:00:06.7]} 49. Kh2 {[%clk 0:00:09]} 49... Rc8
{[%clk 0:00:07.3]} 50. Qh4 {[%clk 0:00:08.9]} 50... Rh8 {[%clk 0:00:07.5]} 51.
Qg3+ {[%clk 0:00:09.1]} 51... Kf7 {[%clk 0:00:08.2]} 52. Qb3 {[%clk 0:00:09]}
52... Rg8 {[%clk 0:00:08.4]} 53. Qd1 {[%clk 0:00:08.2]} 53... Rg7 {[%clk
0:00:07.9]} 54. Qh5+ {[%clk 0:00:08]} 54... Kg8 {[%clk 0:00:08.2]} 55. Qh6
{[%clk 0:00:08.3]} 55... Ref7 {[%clk 0:00:08.1]} 56. Qe3 {[%clk 0:00:07.2]}
56... e5 {[%clk 0:00:08]} 57. Qd3 {[%clk 0:00:07.4]} 57... f4 {[%clk 0:00:07.8]}
58. Qd8+ {[%clk 0:00:07.4]} 58... Kh7 {[%clk 0:00:08.2]} 59. Qd3+ {[%clk
0:00:07.3]} 59... Rg6 {[%clk 0:00:08.8]} 60. Qf5 {[%clk 0:00:07.4]} 60... Kg7
{[%clk 0:00:09.3]} 61. h4 {[%clk 0:00:07.8]} 61... Rg3 {[%clk 0:00:07.9]} 62.
Qe6 {[%clk 0:00:06]} 62... Rf8 {[%clk 0:00:07]} 63. h5 {[%clk 0:00:04.5]} 63...
Rg5 {[%clk 0:00:06.1]} 64. Qe7+ {[%clk 0:00:02.9]} 64... Rf7 {[%clk 0:00:06.5]}
65. h6+ {[%clk 0:00:03.4]} 65... Kg6 {[%clk 0:00:06.7]} 66. Qe8 {[%clk
0:00:03.7]} 66... Rh5+ {[%clk 0:00:07]} 67. Kg1 {[%clk 0:00:04.1]} 67... Rxh6
{[%clk 0:00:06.9]} 68. Qg8+ {[%clk 0:00:04.3]} 68... Rg7 {[%clk 0:00:07.5]} 69.
Qe8+ {[%clk 0:00:04.4]} 69... Kh7 {[%clk 0:00:07.5]} 70. Qe6 {[%clk 0:00:04.1]}
70... Rhg6 {[%clk 0:00:07.9]} 71. Qh3+ {[%clk 0:00:03.9]} 71... Kg8 {[%clk
0:00:08.4]} 72. Qc8+ {[%clk 0:00:03.9]} 72... Kh7 {[%clk 0:00:08.4]} 73. Qh3+
{[%clk 0:00:03.7]} 73... Rh6 {[%clk 0:00:09]} 74. Qf5+ {[%clk 0:00:04]} 74...
Kh8 {[%clk 0:00:09.5]} 75. Qc8+ {[%clk 0:00:03.8]} 75... Rg8 {[%clk 0:00:10.1]}
76. Qf5 {[%clk 0:00:03.3]} 76... Rhg6 {[%clk 0:00:09.8]} 77. Qh3+ {[%clk
0:00:03.3]} 77... Kg7 {[%clk 0:00:10.2]} 78. Qd7+ {[%clk 0:00:03.7]} 78... Kh6
{[%clk 0:00:10.7]} 79. Qh3+ {[%clk 0:00:03.9]} 79... Kg5 {[%clk 0:00:11.2]} 80.
Kf2 {[%clk 0:00:04]} 80... f5 {[%clk 0:00:10.9]} 81. Qc3 {[%clk 0:00:03.6]}
81... Kh5 {[%clk 0:00:09.4]} 82. Qh3+ {[%clk 0:00:03.6]} 82... Kg5 {[%clk
0:00:09.9]} 83. Qc3 {[%clk 0:00:04.1]} 83... Re8 {[%clk 0:00:10.2]} 84. Qc7
{[%clk 0:00:03.5]} 84... Ree6 {[%clk 0:00:10.4]} 85. Qh7 {[%clk 0:00:03.2]}
85... e4 {[%clk 0:00:10.6]} 86. g3 {[%clk 0:00:03.2]} 86... e3+ {[%clk
0:00:10.3]} 87. Kf3 {[%clk 0:00:03.3]} 87... fxg3 {[%clk 0:00:10]} 88. Qh3
{[%clk 0:00:03.4]} 88... Kf6 {[%clk 0:00:09.4]} 89. Qh4+ {[%clk 0:00:03.5]}
89... Kf7 {[%clk 0:00:09.8]} 90. Qh7+ {[%clk 0:00:03.5]} 90... Rg7 {[%clk
0:00:10.4]} 91. Qh5+ {[%clk 0:00:03.6]} 91... Kf6 {[%clk 0:00:10.5]} 92. Qh6+
{[%clk 0:00:03.5]} 92... Rg6 {[%clk 0:00:10.8]} 93. Qf8+ {[%clk 0:00:03.7]}
93... Ke5 {[%clk 0:00:11.2]} 94. Qb8+ {[%clk 0:00:03.3]} 94... Kf6 {[%clk
0:00:09.8]} 95. Qf8+ {[%clk 0:00:03]} 95... Kg5 {[%clk 0:00:10.4]} 96. Qd8+
{[%clk 0:00:03.2]} 96... Kh5 {[%clk 0:00:10]} 97. Qh8+ {[%clk 0:00:02.5]} 97...
Rh6 {[%clk 0:00:10.2]} 98. Qa1 {[%clk 0:00:02.2]} 98... e2 {[%clk 0:00:09.4]}
99. Qe1 {[%clk 0:00:01.7]} 99... Kg6 {[%clk 0:00:08.1]} 100. Kxg3 {[%clk
0:00:01.8]} 100... Kf7 {[%clk 0:00:08.7]} 101. Kf4 {[%clk 0:00:01.9]} 101...
Rhg6 {[%clk 0:00:08.5]} 102. Kxf5 {[%clk 0:00:02.1]} 102... Rgf6+ {[%clk
0:00:09.1]} 103. Kg5 {[%clk 0:00:02.5]} 103... Rf1 {[%clk 0:00:10]} 104. Qb4
{[%clk 0:00:02.5]} 104... e1=Q {[%clk 0:00:09.7]} 105. Qb7+ {[%clk 0:00:02.7]}
105... Re7 {[%clk 0:00:10.2]} 106. Qd5+ {[%clk 0:00:02.8]} 106... Qe6 {[%clk
0:00:09.7]} 107. Qxe6+ {[%clk 0:00:01.6]} 107... Rxe6 {[%clk 0:00:09.8]} 0-1

[Event "*** Titled Tuesday Blitz"]
[Site "Chess.com"]
[Date "2021.03.02"]
[Round "3"]
[White "nocnypako"]
[Black "oogee"]
[Result "1-0"]
[WhiteElo "2555"]
[BlackElo "2365"]
[TimeControl "180+1"]
[EndTime "10:22:51 PST"]
[Termination "nocnypako won by resignation"]

1. d4 {[%clk 0:03:00.9]} 1... Nf6 {[%clk 0:02:59.6]} 2. c4 {[%clk 0:03:00.8]}
2... g6 {[%clk 0:02:58.9]} 3. Nc3 {[%clk 0:03:00.9]} 3... Bg7 {[%clk 0:02:58.2]}
4. e4 {[%clk 0:03:01]} 4... d6 {[%clk 0:02:57.4]} 5. Nf3 {[%clk 0:03:01.5]} 5...
O-O {[%clk 0:02:57.3]} 6. Be2 {[%clk 0:03:02.1]} 6... e5 {[%clk 0:02:57.7]} 7.
O-O {[%clk 0:03:02.8]} 7... Nc6 {[%clk 0:02:57.2]} 8. d5 {[%clk 0:03:03.4]} 8...
Ne7 {[%clk 0:02:55.5]} 9. Ne1 {[%clk 0:03:03.9]} 9... Nd7 {[%clk 0:02:54.6]} 10.
Be3 {[%clk 0:03:04.1]} 10... f5 {[%clk 0:02:54.8]} 11. f3 {[%clk 0:03:04]} 11...
f4 {[%clk 0:02:55.7]} 12. Bf2 {[%clk 0:03:04.1]} 12... g5 {[%clk 0:02:56.3]} 13.
Rc1 {[%clk 0:03:03.2]} 13... Rf5 {[%clk 0:02:54.4]} 14. exf5 {[%clk 0:03:00.5]}
14... Nxf5 {[%clk 0:02:54]} 15. Ne4 {[%clk 0:02:58.3]} 15... h5 {[%clk
0:02:52.9]} 16. c5 {[%clk 0:02:57.4]} 16... Bf8 {[%clk 0:02:41.4]} 17. cxd6
{[%clk 0:02:56.8]} 17... cxd6 {[%clk 0:02:41.6]} 18. Bb5 {[%clk 0:02:50.9]}
18... Nh6 {[%clk 0:02:37.2]} 19. Rxc8 {[%clk 0:02:39.8]} 19... Rxc8 {[%clk
0:02:35.8]} 20. Bxd7 {[%clk 0:02:40]} 20... Qxd7 {[%clk 0:02:35.6]} 21. Nf6+
{[%clk 0:02:39.6]} 1-0

[Event "*** Titled Tuesday Blitz"]
[Site "Chess.com"]
[Date "2021.03.02"]
[Round "3"]
[White "imdarealist"]
[Black "Ajedrez_con_German"]
[Result "0-1"]
[WhiteElo "2376"]
[BlackElo "2564"]
[TimeControl "180+1"]
[EndTime "10:24:24 PST"]
[Termination "Ajedrez_con_German won by resignation"]

1. d4 {[%clk 0:03:00.9]} 1... g6 {[%clk 0:02:58.9]} 2. e4 {[%clk 0:02:58.5]}
2... Bg7 {[%clk 0:02:58.4]} 3. c3 {[%clk 0:02:58]} 3... d6 {[%clk 0:02:54]} 4.
Nf3 {[%clk 0:02:58.1]} 4... Nf6 {[%clk 0:02:48.3]} 5. Bd3 {[%clk 0:02:57.2]}
5... O-O {[%clk 0:02:47.5]} 6. Qe2 {[%clk 0:02:54.7]} 6... c5 {[%clk 0:02:42.7]}
7. Bg5 {[%clk 0:02:49.9]} 7... Bg4 {[%clk 0:02:36.6]} 8. Nbd2 {[%clk 0:02:46]}
8... cxd4 {[%clk 0:02:34.8]} 9. cxd4 {[%clk 0:02:41.5]} 9... Nc6 {[%clk
0:02:35]} 10. Qe3 {[%clk 0:02:35.4]} 10... Qb6 {[%clk 0:02:06.8]} 11. O-O {[%clk
0:02:27.4]} 11... Bxf3 {[%clk 0:02:02.4]} 12. Nxf3 {[%clk 0:02:23.9]} 12... h6
{[%clk 0:01:46.2]} 13. Bxh6 {[%clk 0:01:52.2]} 13... Ng4 {[%clk 0:01:45.5]} 0-1

[Event "*** Titled Tuesday Blitz"]
[Site "Chess.com"]
[Date "2021.03.02"]
[Round "3"]
[White "FCChelsea14"]
[Black "Tactictic"]
[Result "1-0"]
[WhiteElo "2711"]
[BlackElo "2432"]
[TimeControl "180+1"]
[EndTime "10:24:27 PST"]
[Termination "FCChelsea14 won by resignation"]

1. Nf3 {[%clk 0:03:00.9]} 1... Nf6 {[%clk 0:02:59.2]} 2. c4 {[%clk 0:03:00.6]}
2... e6 {[%clk 0:02:59.3]} 3. g3 {[%clk 0:03:00]} 3... d5 {[%clk 0:02:57.6]} 4.
d4 {[%clk 0:02:59.4]} 4... Bb4+ {[%clk 0:02:56.7]} 5. Nbd2 {[%clk 0:02:59.5]}
5... O-O {[%clk 0:02:54]} 6. Bg2 {[%clk 0:02:59.7]} 6... dxc4 {[%clk 0:02:44.5]}
7. O-O {[%clk 0:02:58.5]} 7... Nc6 {[%clk 0:02:41.4]} 8. Nxc4 {[%clk 0:02:58.1]}
8... b6 {[%clk 0:02:23.5]} 9. Bg5 {[%clk 0:02:49]} 9... Bb7 {[%clk 0:02:22.2]}
10. Rc1 {[%clk 0:02:49]} 10... h6 {[%clk 0:02:05.1]} 11. Bxf6 {[%clk 0:02:48.9]}
11... Qxf6 {[%clk 0:02:06]} 12. Nfe5 {[%clk 0:02:49.3]} 12... b5 {[%clk
0:01:38.7]} 13. Nxc6 {[%clk 0:02:36]} 13... Bxc6 {[%clk 0:01:35.9]} 14. Bxc6
{[%clk 0:02:33]} 14... bxc4 {[%clk 0:01:36.1]} 15. Bxa8 {[%clk 0:02:33.4]} 15...
Rxa8 {[%clk 0:01:34.6]} 16. Rxc4 {[%clk 0:02:34.3]} 16... Bd6 {[%clk 0:01:32.3]}
17. e4 {[%clk 0:02:32.6]} 17... e5 {[%clk 0:01:32]} 18. dxe5 {[%clk 0:02:27.5]}
18... Qxe5 {[%clk 0:01:24.8]} 19. Qd5 {[%clk 0:02:27.2]} 19... Qe8 {[%clk
0:01:22]} 20. e5 {[%clk 0:02:25]} 1-0

[Event "*** Titled Tuesday Blitz"]
[Site "Chess.com"]
[Date "2021.03.02"]
[Round "3"]
[White "Albertu"]
[Black "ailime26"]
[Result "1-0"]
[WhiteElo "2357"]
[BlackElo "2101"]
[TimeControl "180+1"]
[EndTime "10:24:45 PST"]
[Termination "Albertu won by resignation"]

1. e4 {[%clk 0:02:57.3]} 1... c5 {[%clk 0:02:49.9]} 2. Nf3 {[%clk 0:02:57.1]}
2... Nc6 {[%clk 0:02:49.5]} 3. d4 {[%clk 0:02:57.6]} 3... cxd4 {[%clk
0:02:48.7]} 4. Nxd4 {[%clk 0:02:58.5]} 4... g6 {[%clk 0:02:41.8]} 5. c4 {[%clk
0:02:57.5]} 5... Bg7 {[%clk 0:02:41.4]} 6. Be3 {[%clk 0:02:58.1]} 6... Nf6
{[%clk 0:02:36.2]} 7. Nc3 {[%clk 0:02:57.3]} 7... O-O {[%clk 0:02:35.6]} 8. Be2
{[%clk 0:02:56.8]} 8... d6 {[%clk 0:02:32.5]} 9. O-O {[%clk 0:02:57.1]} 9... e5
{[%clk 0:02:27.2]} 10. Ndb5 {[%clk 0:02:55.8]} 10... Ne8 {[%clk 0:01:58]} 11. c5
{[%clk 0:02:53.5]} 11... dxc5 {[%clk 0:01:56.2]} 12. Bxc5 {[%clk 0:02:54.4]}
12... a6 {[%clk 0:01:52.4]} 13. Qxd8 {[%clk 0:02:37.2]} 13... Nxd8 {[%clk
0:01:52]} 14. Bxf8 {[%clk 0:02:38.1]} 14... Bxf8 {[%clk 0:01:52.5]} 15. Na3
{[%clk 0:02:38.5]} 15... b5 {[%clk 0:01:46.3]} 16. Nd5 {[%clk 0:02:38.2]} 16...
Bb7 {[%clk 0:01:41]} 17. Nc2 {[%clk 0:02:37.6]} 17... Rc8 {[%clk 0:01:26.4]} 18.
Nce3 {[%clk 0:02:35.8]} 18... Nd6 {[%clk 0:01:22.3]} 19. f3 {[%clk 0:02:31.8]}
19... Bh6 {[%clk 0:01:21.4]} 20. Kf2 {[%clk 0:02:25.5]} 20... f5 {[%clk
0:01:10.9]} 21. Ne7+ {[%clk 0:02:24.7]} 1-0

[Event "*** Titled Tuesday Blitz"]
[Site "Chess.com"]
[Date "2021.03.02"]
[Round "3"]
[White "Susal_De_Silva"]
[Black "Zhigalko_Sergei"]
[Result "0-1"]
[WhiteElo "2657"]
[BlackElo "2915"]
[TimeControl "180+1"]
[EndTime "10:24:55 PST"]
[Termination "Zhigalko_Sergei won by resignation"]

1. e4 {[%clk 0:03:00.9]} 1... c5 {[%clk 0:02:59.5]} 2. Nf3 {[%clk 0:03:01.2]}
2... Nc6 {[%clk 0:02:59.3]} 3. Bb5 {[%clk 0:03:01.1]} 3... Nf6 {[%clk
0:02:59.3]} 4. Bxc6 {[%clk 0:03:00.4]} 4... dxc6 {[%clk 0:02:59.4]} 5. d3 {[%clk
0:03:00.6]} 5... Bg4 {[%clk 0:02:59.3]} 6. h3 {[%clk 0:03:00.6]} 6... Bh5 {[%clk
0:02:59.7]} 7. O-O {[%clk 0:03:00.7]} 7... Qc7 {[%clk 0:02:58.6]} 8. Nc3 {[%clk
0:02:59.7]} 8... Nd7 {[%clk 0:02:58.7]} 9. Re1 {[%clk 0:02:57.7]} 9... e6 {[%clk
0:02:51.9]} 10. g4 {[%clk 0:02:55.6]} 10... Bg6 {[%clk 0:02:51.3]} 11. Ne2
{[%clk 0:02:56.5]} 11... Bd6 {[%clk 0:02:51]} 12. Kg2 {[%clk 0:02:53]} 12... h5
{[%clk 0:02:48.6]} 13. Ng3 {[%clk 0:02:47.9]} 13... O-O-O {[%clk 0:02:44.4]} 14.
Nh4 {[%clk 0:02:34.2]} 14... hxg4 {[%clk 0:02:39.7]} 15. Qxg4 {[%clk 0:02:35.1]}
15... Ne5 {[%clk 0:02:22.2]} 16. Nxg6 {[%clk 0:02:14.6]} 16... Nxg4 {[%clk
0:02:11]} 17. Nxh8 {[%clk 0:02:14.8]} 17... Nxf2 {[%clk 0:01:18.9]} 18. Re3
{[%clk 0:02:08.2]} 18... Nd1 {[%clk 0:01:14.2]} 19. Rf3 {[%clk 0:02:08.1]} 19...
Rxh8 {[%clk 0:01:13.7]} 20. Bg5 {[%clk 0:02:08.2]} 20... Nxb2 {[%clk 0:01:08.7]}
0-1